bitfinex/quotes_SOLUSD_20230120
["timestamp","ask_amount","ask_price","bid_price","bid_amount"]
[1674241021971,5.88059258,22.873,22.861,53.95980573]
[1674241022600,5.88059258,22.873,22.861,36.95980573]
[1674241023129,10.0,22.872,22.858,16.95980573]
[1674241023448,10.0,22.872,22.862,16.95980573]
[1674241023971,10.0,22.872,22.86,17.26]
[1674241024149,5.88059258,22.873,22.861,30.0]
[1674241024361,5.88059258,22.873,22.862,51.82112208]
[1674241024573,5.88059258,22.873,22.863,0.96]
[1674241024784,5.88059258,22.873,22.863,20.96]
[1674241025095,0.00059258,22.873,22.865,10.0]
[1674241025326,118.1809,22.889,22.867,10.0]
[1674241025541,10.0,22.888,22.871,10.0]
[1674241025735,10.0,22.888,22.872,20.0]
[1674241025941,10.0,22.888,22.873,17.0]
[1674241026293,10.0,22.888,22.874,20.0]
[1674241026472,10.0,22.888,22.875,17.0]
[1674241026672,10.0,22.888,22.876,20.0]
[1674241027737,10.0,22.888,22.871,20.0]
[1674241028559,10.0,22.886,22.872,16.95980573]
[1674241028769,10.0,22.886,22.873,20.0]
[1674241028998,10.0,22.886,22.874,17.0]
[1674241029214,10.0,22.886,22.875,20.0]
[1674241029620,10.0,22.886,22.875,36.95980573]
[1674241029831,10.0,22.884,22.875,36.95980573]
[1674241034076,10.0,22.884,22.876,16.95980573]
[1674241034258,10.0,22.884,22.877,20.0]
[1674241036579,10.0,22.886,22.877,20.0]
[1674241036892,10.0,22.886,22.877,36.95980573]
[1674241040158,10.0,22.887,22.877,36.95980573]
[1674241040342,10.0,22.888,22.878,17.0]
[1674241040552,10.0,22.888,22.88,17.22]
[1674241040763,10.0,22.888,22.881,17.0]
[1674241040988,10.0,22.888,22.88,17.22]
[1674241041182,10.0,22.888,22.879,16.95980573]
[1674241041400,10.0,22.888,22.88,20.0]
[1674241041828,10.0,22.888,22.88,36.95980573]
[1674241043929,10.0,22.888,22.88,20.0]
[1674241044266,10.0,22.888,22.875,20.0]
[1674241044460,10.0,22.888,22.878,16.95980573]
[1674241044672,10.0,22.888,22.879,20.0]
[1674241045822,10.0,22.888,22.879,53.91961146]
[1674241046452,10.0,22.888,22.879,36.95980573]
[1674241046759,128.1809,22.889,22.879,36.95980573]
[1674241046984,112.5692,22.891,22.88,17.0]
[1674241047176,10.0,22.89,22.881,10.0]
[1674241047384,10.0,22.89,22.882,17.0]
[1674241048031,111.698,22.895,22.883,16.95980573]
[1674241048240,111.698,22.895,22.884,17.0]
[1674241048455,111.698,22.895,22.885,10.0]
[1674241048647,111.698,22.895,22.886,17.0]
[1674241048855,111.698,22.895,22.886,33.95980573]
[1674241049499,111.698,22.895,22.882,50.37392912]
[1674241049724,111.698,22.895,22.883,17.0]
[1674241049912,121.698,22.895,22.883,17.0]
[1674241050773,121.698,22.895,22.882,50.37392912]
[1674241051097,121.698,22.895,22.883,17.0]
[1674241051295,42.77,22.894,22.883,17.0]
[1674241052035,42.77,22.894,22.881,33.95980573]
[1674241052557,42.77,22.894,22.881,16.95980573]
[1674241052985,10.0,22.894,22.881,16.95980573]
[1674241054026,17.0,22.893,22.881,16.95980573]
[1674241054344,10.0,22.891,22.881,16.95980573]
[1674241054554,32.77,22.89,22.87,27.37]
[1674241054766,10.0,22.889,22.88,20.0]
[1674241055500,10.0,22.889,22.876,10.0]
[1674241055690,10.0,22.889,22.877,20.0]
[1674241055896,10.0,22.889,22.877,36.95980573]
[1674241056119,10.0,22.889,22.879,10.0]
[1674241056338,10.0,22.889,22.88,37.0]
[1674241056538,10.0,22.889,22.88,53.95980573]
[1674241057186,10.0,22.889,22.88,20.0]
[1674241057596,10.0,22.889,22.874,16.95980573]
[1674241057803,10.0,22.889,22.875,20.0]
[1674241060954,10.0,22.889,22.875,36.95980573]
[1674241061796,17.0,22.888,22.875,20.0]
[1674241062006,10.0,22.887,22.875,20.0]
[1674241062217,10.0,22.887,22.873,16.95980573]
[1674241062537,10.0,22.887,22.874,20.0]
[1674241063785,10.0,22.887,22.875,10.0]
[1674241064118,10.0,22.889,22.876,17.96]
[1674241064331,123.362,22.891,22.876,54.91980573]
[1674241064520,123.362,22.891,22.877,10.0]
[1674241064731,123.362,22.891,22.878,37.0]
[1674241065160,123.362,22.891,22.88,10.0]
[1674241065377,10.0,22.894,22.88,10.0]
[1674241065583,121.698,22.895,22.882,10.0]
[1674241065903,42.76,22.898,22.883,37.0]
[1674241066100,10.0,22.898,22.884,0.96]
[1674241066316,10.0,22.9,22.884,0.96]
[1674241066517,144.7662,22.905,22.885,5.04193]
[1674241066754,10.0,22.901,22.886,47.0]
[1674241066960,10.0,22.901,22.886,20.0]
[1674241067597,10.0,22.901,22.884,20.0]
[1674241067906,10.0,22.901,22.884,36.95980573]
[1674241068113,17.0,22.9,22.884,36.95980573]
[1674241068308,10.0,22.9,22.884,36.95980573]
[1674241068515,10.0,22.9,22.886,10.0]
[1674241068730,10.0,22.9,22.887,37.96]
[1674241068950,10.0,22.9,22.887,37.0]
[1674241069486,42.76,22.9,22.887,37.0]
[1674241069695,10.0,22.9,22.887,20.0]
[1674241070742,10.0,22.898,22.881,20.0]
[1674241070955,49.76,22.897,22.881,20.0]
[1674241071149,10.0,22.896,22.881,20.0]
[1674241071784,10.0,22.896,22.88,17.37]
[1674241072004,10.0,22.894,22.875,52.47736806]
[1674241072210,49.77,22.893,22.875,52.47736806]
[1674241072424,49.77,22.893,22.87,17.37]
[1674241072425,10.0,22.892,22.87,17.37]
[1674241072621,49.77,22.891,22.871,10.0]
[1674241072833,10.0,22.89,22.871,10.0]
[1674241073043,10.0,22.89,22.871,32.00481573]
[1674241073459,10.0,22.89,22.873,10.0]
[1674241073797,10.0,22.89,22.874,34.91980573]
[1674241073983,10.0,22.89,22.875,10.0]
[1674241074193,10.0,22.89,22.876,17.0]
[1674241075159,10.0,22.89,22.875,10.0]
[1674241075980,10.0,22.89,22.876,20.0]
[1674241076303,10.0,22.888,22.875,20.0]
[1674241077257,10.0,22.888,22.876,10.0]
[1674241077464,10.0,22.888,22.877,20.0]
[1674241077679,10.0,22.888,22.875,20.0]
[1674241078083,10.0,22.888,22.872,20.0]
[1674241079238,10.0,22.888,22.872,36.95980573]
[1674241079450,10.0,22.888,22.873,17.0]
[1674241079661,10.0,22.888,22.874,20.0]
[1674241081035,49.78,22.887,22.86,17.43]
[1674241081246,49.78,22.887,22.86,22.47744]
[1674241081562,10.0,22.886,22.863,10.0]
[1674241081773,49.78,22.885,22.863,10.0]
[1674241081985,49.78,22.885,22.863,26.95980573]
[1674241082200,10.0,22.884,22.863,26.95980573]
[1674241082407,32.78,22.883,22.863,32.00658573]
[1674241082624,32.78,22.883,22.865,10.0]
[1674241082843,32.78,22.883,22.866,17.0]
[1674241083041,10.0,22.882,22.867,10.0]
[1674241083250,10.0,22.882,22.868,17.0]
[1674241083667,10.0,22.882,22.868,15.5]
[1674241084823,10.0,22.882,22.869,20.0]
[1674241085142,32.78,22.883,22.869,20.0]
[1674241085347,122.0097,22.886,22.87,10.0]
[1674241085564,112.0097,22.886,22.87,10.0]
[1674241085762,112.0097,22.886,22.871,17.0]
[1674241086201,112.0097,22.886,22.872,10.0]
[1674241086422,10.0,22.885,22.872,10.0]
[1674241086725,10.0,22.883,22.871,17.0]
[1674241087666,10.0,22.883,22.869,20.0]
[1674241087881,10.0,22.883,22.868,20.0]
[1674241088515,10.0,22.881,22.868,20.0]
[1674241088729,10.0,22.879,22.866,20.0]
[1674241088933,17.0,22.878,22.866,20.0]
[1674241089147,10.0,22.877,22.866,20.0]
[1674241089652,10.0,22.877,22.864,20.0]
[1674241089865,17.0,22.876,22.864,20.0]
[1674241090069,119.0534,22.88,22.865,10.0]
[1674241090282,119.0534,22.88,22.867,10.0]
[1674241090721,119.0534,22.88,22.868,36.95980573]
[1674241090921,119.0534,22.88,22.869,17.0]
[1674241091126,119.0534,22.88,22.87,10.0]
[1674241091975,119.0534,22.88,22.87,26.95980573]
[1674241093037,119.0534,22.88,22.87,10.0]
[1674241095155,32.78,22.884,22.87,26.95980573]
[1674241095342,42.78,22.885,22.872,10.0]
[1674241095761,42.78,22.885,22.873,36.95980573]
[1674241095967,42.78,22.885,22.874,10.0]
[1674241096202,42.78,22.885,22.875,20.0]
[1674241097677,42.78,22.885,22.874,20.0]
[1674241097876,10.0,22.885,22.874,20.0]
[1674241098072,42.77,22.889,22.875,10.0]
[1674241098278,42.77,22.889,22.876,20.0]
[1674241099448,10.0,22.885,22.876,20.0]
[1674241101449,10.0,22.885,22.865,13.259]
[1674241101669,49.78,22.884,22.865,10.0]
[1674241101863,10.0,22.883,22.866,16.95980573]
[1674241102077,49.78,22.882,22.866,16.95980573]
[1674241102305,10.0,22.881,22.866,16.95980573]
[1674241102492,10.0,22.881,22.867,10.0]
[1674241102943,10.0,22.881,22.869,10.0]
[1674241103339,10.0,22.881,22.87,33.95980573]
[1674241103675,10.0,22.881,22.871,10.0]
[1674241104197,10.0,22.881,22.872,16.95980573]
[1674241105042,10.0,22.883,22.872,16.95980573]
[1674241105254,112.0097,22.886,22.873,47.0]
[1674241105650,10.0,22.889,22.875,10.0]
[1674241105971,10.0,22.889,22.876,17.0]
[1674241106303,10.0,22.889,22.878,10.0]
[1674241106513,145.8462,22.891,22.878,10.0]
[1674241106699,32.77,22.895,22.88,17.37]
[1674241106906,10.0,22.897,22.882,10.0]
[1674241107134,42.76,22.896,22.883,17.0]
[1674241107551,42.76,22.896,22.881,17.0]
[1674241109330,42.76,22.896,22.882,10.0]
[1674241109542,42.76,22.896,22.883,17.0]
[1674241109961,42.76,22.896,22.881,17.0]
[1674241110798,32.76,22.897,22.882,0.96]
[1674241111342,10.0,22.898,22.883,22.00217573]
[1674241111566,32.76,22.9,22.884,23.00215]
[1674241111864,157.2203,22.902,22.885,25.04193]
[1674241112083,157.2203,22.902,22.886,33.00171]
[1674241112266,157.2203,22.902,22.887,25.04149]
[1674241112475,157.2203,22.902,22.888,17.0]
[1674241112686,157.2203,22.902,22.889,20.0]
[1674241112909,157.2203,22.902,22.89,17.0]
[1674241113967,42.76,22.902,22.89,34.2]
[1674241114190,10.0,22.902,22.89,34.2]
[1674241115110,10.0,22.902,22.891,10.0]
[1674241115319,10.0,22.902,22.892,17.0]
[1674241115547,42.75,22.903,22.892,17.0]
[1674241116395,32.75,22.903,22.892,17.0]
[1674241116604,512.1226,22.924,22.893,6.00017]
[1674241116814,113.33,22.923,22.9,17.37]
[1674241117030,10.0,22.912,22.901,17.0]
[1674241117433,10.0,22.921,22.901,22.0384]
[1674241117634,32.73,22.92,22.902,5.03818]
[1674241117849,10.0,22.919,22.903,17.0]
[1674241118068,10.0,22.917,22.9,17.37]
[1674241118270,32.74,22.916,22.899,16.95980573]
[1674241118697,10.0,22.915,22.899,16.95980573]
[1674241119001,10.0,22.913,22.893,0.96]
[1674241119231,32.74,22.912,22.893,5.04017]
[1674241119431,10.0,22.911,22.894,17.96]
[1674241119642,32.74,22.91,22.895,20.0]
[1674241119851,10.0,22.909,22.896,17.0]
[1674241120067,10.0,22.907,22.896,17.0]
[1674241120261,49.75,22.906,22.897,20.0]
[1674241120469,10.0,22.905,22.897,20.0]
[1674241120702,32.75,22.904,22.881,10.0]
[1674241120910,10.0,22.902,22.881,10.0]
[1674241121124,10.0,22.9,22.881,10.0]
[1674241121330,10.0,22.9,22.88,141.9693]
[1674241121548,32.76,22.899,22.88,147.01233]
[1674241121756,10.0,22.898,22.88,147.01233]
[1674241121962,10.0,22.898,22.881,10.0]
[1674241122172,10.0,22.898,22.88,147.01233]
[1674241122366,10.0,22.898,22.881,10.0]
[1674241122793,10.0,22.898,22.88,137.01233]
[1674241123213,32.76,22.897,22.881,20.0]
[1674241123425,10.0,22.896,22.881,20.0]
[1674241124591,10.0,22.896,22.882,17.0]
[1674241124800,10.0,22.896,22.883,20.0]
[1674241125430,10.0,22.896,22.88,137.01233]
[1674241125649,32.77,22.895,22.875,10.0]
[1674241125957,10.0,22.893,22.871,10.0]
[1674241126152,10.0,22.891,22.871,10.0]
[1674241126367,32.77,22.89,22.874,22.00415573]
[1674241126573,10.0,22.889,22.875,5.04413]
[1674241126996,10.0,22.889,22.875,22.00393573]
[1674241127429,32.77,22.892,22.876,17.96]
[1674241127744,32.77,22.895,22.877,5.04369]
[1674241127958,32.76,22.899,22.88,17.37]
[1674241128164,32.76,22.897,22.881,15.04281]
[1674241128356,32.76,22.897,22.882,23.00259]
[1674241128779,32.76,22.897,22.883,16.95980573]
[1674241128993,32.76,22.897,22.884,17.96]
[1674241129414,42.76,22.901,22.884,34.91980573]
[1674241129619,10.0,22.901,22.886,10.0]
[1674241129828,10.0,22.901,22.887,37.96]
[1674241130043,10.0,22.901,22.888,10.0]
[1674241130254,10.0,22.901,22.889,37.0]
[1674241130469,10.0,22.901,22.89,10.0]
[1674241130675,10.0,22.901,22.891,17.0]
[1674241132163,10.0,22.901,22.892,10.0]
[1674241132374,228.4215,22.902,22.893,17.0]
[1674241133001,32.75,22.906,22.893,17.0]
[1674241133738,32.75,22.906,22.892,16.95980573]
[1674241133963,32.75,22.904,22.889,20.0]
[1674241134147,32.75,22.904,22.887,20.0]
[1674241134476,10.0,22.901,22.887,20.0]
[1674241134879,10.0,22.901,22.888,10.0]
[1674241135089,10.0,22.901,22.889,20.0]
[1674241135322,10.0,22.901,22.89,17.0]
[1674241135836,116.1081,22.902,22.891,10.0]
[1674241136053,32.75,22.906,22.892,17.0]
[1674241136264,32.75,22.908,22.893,20.0]
[1674241136690,32.75,22.908,22.893,36.95980573]
[1674241136997,10.0,22.908,22.893,36.95980573]
[1674241137201,32.75,22.906,22.894,16.95980573]
[1674241137607,10.0,22.906,22.894,16.95980573]
[1674241137818,10.0,22.906,22.895,20.0]
[1674241138033,10.0,22.906,22.896,17.0]
[1674241138243,10.0,22.906,22.897,20.0]
[1674241139204,10.0,22.906,22.895,20.0]
[1674241140773,10.0,22.904,22.895,20.0]
[1674241141195,10.0,22.904,22.887,20.0]
[1674241141415,10.0,22.904,22.889,16.95980573]
[1674241141623,10.0,22.904,22.89,20.0]
[1674241141946,10.0,22.904,22.891,26.95980573]
[1674241142472,10.0,22.906,22.891,26.95980573]
[1674241142473,10.0,22.906,22.893,10.0]
[1674241142676,10.0,22.906,22.894,42.99995]
[1674241142889,10.0,22.906,22.895,5.03972]
[1674241143104,10.0,22.906,22.896,37.0]
[1674241143425,10.0,22.906,22.896,20.0]
[1674241143739,10.0,22.906,22.892,20.0]
[1674241143958,10.0,22.906,22.893,17.0]
[1674241144131,10.0,22.906,22.894,20.0]
[1674241145087,10.0,22.906,22.895,17.0]
[1674241145302,10.0,22.906,22.896,20.0]
[1674241145940,10.0,22.906,22.897,17.0]
[1674241146253,10.0,22.906,22.898,20.0]
[1674241146464,10.0,22.906,22.899,17.0]
[1674241147290,10.0,22.907,22.899,17.0]
[1674241150034,10.0,22.907,22.898,20.0]
[1674241150230,10.0,22.907,22.892,20.0]
[1674241151498,10.0,22.907,22.888,16.95980573]
[1674241151702,10.0,22.905,22.88,145.0537]
[1674241151918,49.75,22.904,22.883,5.04237]
[1674241152128,10.0,22.903,22.883,5.04237]
[1674241152346,49.76,22.902,22.883,5.04237]
[1674241152544,10.0,22.901,22.883,5.04237]
[1674241152764,32.76,22.9,22.883,5.04237]
[1674241152958,10.0,22.899,22.883,5.04237]
[1674241153173,10.0,22.899,22.884,17.0]
[1674241153725,10.0,22.899,22.883,5.04237]
[1674241153944,10.0,22.897,22.883,5.04237]
[1674241154247,10.0,22.897,22.884,20.0]
[1674241154442,10.0,22.897,22.883,5.04237]
[1674241154651,32.76,22.896,22.883,5.04237]
[1674241154863,27.0,22.895,22.872,10.0]
[1674241155068,32.77,22.894,22.874,5.04435]
[1674241155299,10.0,22.893,22.874,5.04435]
[1674241155482,32.77,22.892,22.874,5.04435]
[1674241155694,10.0,22.891,22.874,22.35632134]
[1674241155911,10.0,22.891,22.875,10.0]
[1674241156324,118.4105,22.891,22.876,20.0]
[1674241157597,27.0,22.89,22.876,20.0]
[1674241157812,10.0,22.889,22.875,20.0]
[1674241158435,32.78,22.888,22.875,20.0]
[1674241158651,10.0,22.887,22.875,20.0]
[1674241159500,10.0,22.887,22.876,17.0]
[1674241159713,32.77,22.889,22.877,20.0]
[1674241160021,118.4105,22.891,22.879,10.0]
[1674241160244,118.4105,22.891,22.88,17.0]
[1674241160436,108.4105,22.891,22.88,60.10197134]
[1674241160651,108.4105,22.891,22.881,30.0]
[1674241160978,42.76,22.899,22.882,17.0]
[1674241161305,10.0,22.898,22.884,10.0]
[1674241161608,10.0,22.898,22.885,17.0]
[1674241161814,10.0,22.898,22.886,26.00171]
[1674241162017,10.0,22.898,22.887,17.0]
[1674241162223,10.0,22.898,22.888,20.0]
[1674241162427,10.0,22.898,22.889,17.0]
[1674241162660,10.0,22.898,22.89,20.0]
[1674241162859,10.0,22.898,22.891,17.0]
[1674241163274,10.0,22.898,22.892,20.0]
[1674241165586,10.0,22.898,22.891,17.0]
[1674241166214,10.0,22.898,22.886,22.35368134]
[1674241166429,10.0,22.898,22.886,17.31197134]
[1674241166649,10.0,22.896,22.886,17.31197134]
[1674241167181,10.0,22.896,22.887,20.0]
[1674241167395,10.0,22.896,22.882,20.0]
[1674241167582,10.0,22.896,22.882,37.31197134]
[1674241168314,10.0,22.896,22.883,10.0]
[1674241168520,17.0,22.895,22.882,20.0]
[1674241168735,17.0,22.895,22.881,20.0]
[1674241168960,10.0,22.894,22.881,20.0]
[1674241169386,10.0,22.894,22.882,10.0]
[1674241169704,10.0,22.894,22.883,20.0]
[1674241169917,10.0,22.894,22.884,17.0]
[1674241170106,10.0,22.894,22.885,20.0]
[1674241170314,10.0,22.894,22.886,17.0]
[1674241170736,10.0,22.894,22.887,20.0]
[1674241171574,10.0,22.896,22.887,20.0]
[1674241171896,10.0,22.896,22.888,17.0]
[1674241172106,10.0,22.896,22.889,20.0]
[1674241172859,10.0,22.896,22.883,20.0]
[1674241173049,10.0,22.896,22.884,10.0]
[1674241173384,10.0,22.896,22.885,20.0]
[1674241174113,10.0,22.896,22.887,10.0]
[1674241174307,10.0,22.896,22.888,20.0]
[1674241174511,10.0,22.896,22.889,17.0]
[1674241178523,10.0,22.898,22.89,10.0]
[1674241178933,10.0,22.898,22.891,17.0]
[1674241179143,10.0,22.898,22.888,20.0]
[1674241179474,32.76,22.902,22.892,17.31197134]
[1674241179686,108.7279,22.91,22.894,10.0]
[1674241179991,108.7279,22.91,22.895,17.31197134]
[1674241180209,108.7279,22.91,22.897,10.0]
[1674241180401,32.74,22.914,22.898,37.96]
[1674241180612,32.74,22.914,22.9,26.04]
[1674241180822,32.74,22.914,22.901,17.0]
[1674241181991,32.74,22.914,22.901,51.62394268]
[1674241182188,32.74,22.914,22.902,20.0]
[1674241182609,32.74,22.914,22.903,17.0]
[1674241182822,32.74,22.914,22.904,20.0]
[1674241183678,32.74,22.914,22.903,17.0]
[1674241183996,32.74,22.91,22.899,5.03884]
[1674241184183,32.74,22.91,22.893,10.0]
[1674241184396,42.75,22.908,22.893,10.0]
[1674241185044,42.75,22.908,22.894,17.31197134]
[1674241185348,10.0,22.908,22.895,20.0]
[1674241185567,10.0,22.908,22.896,17.0]
[1674241185754,10.0,22.908,22.897,20.0]
[1674241186182,10.0,22.906,22.891,20.0]
[1674241186499,10.0,22.904,22.891,20.0]
[1674241186707,10.0,22.904,22.892,17.31197134]
[1674241187020,10.0,22.906,22.893,20.0]
[1674241187235,10.0,22.906,22.894,27.0]
[1674241187440,10.0,22.906,22.894,44.31197134]
[1674241187669,10.0,22.906,22.895,20.0]
[1674241187861,10.0,22.906,22.895,37.31197134]
[1674241188070,10.0,22.906,22.896,17.0]
[1674241188280,10.0,22.906,22.897,20.0]
[1674241188502,10.0,22.906,22.898,17.0]
[1674241188719,10.0,22.906,22.899,20.0]
[1674241188924,10.0,22.908,22.899,20.0]
[1674241189146,10.0,22.908,22.9,17.0]
[1674241192199,10.0,22.908,22.899,20.0]
[1674241192414,10.0,22.908,22.898,20.0]
[1674241192628,10.0,22.908,22.899,17.0]
[1674241193045,10.0,22.908,22.898,20.0]
[1674241193659,10.0,22.908,22.899,17.0]
[1674241197769,10.0,22.91,22.899,17.0]
[1674241197992,10.0,22.91,22.9,10.0]
[1674241199541,10.0,22.91,22.899,17.0]
[1674241200488,10.0,22.91,22.9,25.79]
[1674241200699,10.0,22.91,22.901,17.0]
[1674241200929,32.73,22.918,22.902,5.03818]
[1674241201150,42.73,22.923,22.904,10.0]
[1674241201335,42.73,22.923,22.905,25.03752]
[1674241201543,10.0,22.922,22.906,17.96]
[1674241201758,32.73,22.921,22.907,20.0]
[1674241201973,10.0,22.92,22.908,17.0]
[1674241202185,10.0,22.92,22.909,20.0]
[1674241202806,10.0,22.92,22.9,25.79]
[1674241202807,10.0,22.915,22.9,25.79]
[1674241203027,10.0,22.915,22.895,10.0]
[1674241203028,10.0,22.913,22.895,10.0]
[1674241203228,32.74,22.912,22.897,17.31197134]
[1674241203439,32.74,22.912,22.9,25.79]
[1674241203747,10.0,22.913,22.901,17.31197134]
[1674241204174,10.0,22.913,22.9,43.10197134]
[1674241204395,10.0,22.913,22.901,17.0]
[1674241204795,10.0,22.913,22.901,34.31197134]
[1674241205654,32.73,22.918,22.902,30.96]
[1674241205975,10.0,22.92,22.904,10.0]
[1674241206183,10.0,22.92,22.905,37.0]
[1674241206589,10.0,22.92,22.906,18.27197134]
[1674241206804,10.0,22.92,22.907,20.0]
[1674241207006,10.0,22.92,22.907,37.31197134]
[1674241207332,32.73,22.918,22.907,37.31197134]
[1674241207544,32.73,22.918,22.907,20.0]
[1674241207779,32.73,22.918,22.902,17.31197134]
[1674241207970,32.73,22.918,22.901,20.0]
[1674241207971,32.73,22.918,22.904,10.0]
[1674241208161,26.04,22.94,22.91,25.79]
[1674241208495,10.0,22.938,22.912,10.0]
[1674241208692,32.71,22.937,22.913,20.0]
[1674241208898,10.0,22.936,22.915,10.0]
[1674241209115,32.71,22.935,22.92,26.04]
[1674241209320,10.0,22.934,22.92,26.04]
[1674241209551,32.71,22.933,22.921,17.0]
[1674241209735,10.0,22.932,22.921,17.0]
[1674241209947,10.0,22.932,22.921,35.74902262]
[1674241210365,10.0,22.932,22.922,10.0]
[1674241210594,10.0,22.932,22.923,17.0]
[1674241210809,10.0,22.932,22.923,35.74902262]
[1674241211314,10.0,22.932,22.924,18.74902262]
[1674241211525,10.0,22.932,22.925,17.0]
[1674241212282,10.0,22.932,22.924,18.74902262]
[1674241212489,10.0,22.934,22.925,103.4723608]
[1674241212698,10.0,22.935,22.925,86.4723608]
[1674241213324,0.44480218,22.934,22.925,86.4723608]
[1674241213657,0.44480218,22.934,22.926,17.0]
[1674241213962,0.44480218,22.934,22.927,38.74902262]
[1674241214167,0.44480218,22.934,22.928,17.0]
[1674241214382,0.44480218,22.934,22.929,20.0]
[1674241215651,0.44480218,22.934,22.928,20.0]
[1674241216174,0.44480218,22.934,22.929,17.0]
[1674241216698,0.44480218,22.934,22.928,38.74902262]
[1674241217838,0.44480218,22.934,22.92,26.04]
[1674241218160,32.71,22.933,22.913,135.3746]
[1674241218375,32.71,22.933,22.915,10.0]
[1674241218376,10.0,22.932,22.915,10.0]
[1674241218697,10.0,22.932,22.92,26.04]
[1674241219730,10.0,22.932,22.921,37.0]
[1674241219944,10.0,22.932,22.921,55.74902262]
[1674241220365,10.0,22.932,22.916,42.09220737]
[1674241220366,10.0,22.932,22.916,5.03511]
[1674241220571,49.71,22.931,22.9,25.79]
[1674241220877,10.0,22.93,22.91,26.04]
[1674241221086,32.72,22.929,22.911,5.03621]
[1674241221318,10.0,22.928,22.911,5.03621]
[1674241221523,10.0,22.926,22.911,5.03621]
[1674241222557,17.0,22.925,22.911,5.03621]
[1674241222769,17.0,22.925,22.906,10.0]
[1674241222770,10.0,22.924,22.906,10.0]
[1674241223627,10.0,22.924,22.904,503.41811975]
[1674241223836,10.0,22.922,22.904,503.41811975]
[1674241224161,10.0,22.92,22.904,503.41811975]
[1674241224477,32.73,22.919,22.905,20.0]
[1674241224674,10.0,22.918,22.905,20.0]
[1674241225501,17.0,22.917,22.905,19.0]
[1674241225735,10.0,22.916,22.905,19.0]
[1674241226050,32.73,22.917,22.905,19.0]
[1674241226455,10.0,22.918,22.906,10.0]
[1674241227426,10.0,22.918,22.907,20.0]
[1674241228156,10.0,22.918,22.907,19.5]
[1674241228583,10.0,22.918,22.903,10.0]
[1674241229198,10.0,22.918,22.904,20.0]